[Event "*** MasterClass Titled Tuesday Blitz"]
[Site "Chess.com"]
[Date "2017.11.07"]
[Round "4"]
[White "tango_argentino"]
[Black "GeorgMeier"]
[Result "0-1"]
[WhiteElo "2490"]
[BlackElo "2682"]
[TimeControl "180+2"]
[EndTime "15:03:03 PST"]
[Termination "GeorgMeier won by checkmate"]

1. b3 {[%clk 0:02:28.6]} 1... d5 {[%clk 0:02:57.6]} 2. Bb2 {[%clk 0:02:29.2]}
2... Nf6 {[%clk 0:02:59.2]} 3. e3 {[%clk 0:02:30.1]} 3... Bf5 {[%clk 0:03:00.1]}
4. Nc3 {[%clk 0:02:26.6]} 4... e5 {[%clk 0:02:58.2]} 5. d4 {[%clk 0:02:26.4]}
5... e4 {[%clk 0:02:58.7]} 6. Qd2 {[%clk 0:02:26.6]} 6... c6 {[%clk 0:02:53.1]}
7. f3 {[%clk 0:02:25]} 7... Bd6 {[%clk 0:02:48.4]} 8. O-O-O {[%clk 0:02:19.5]}
8... h6 {[%clk 0:02:26.2]} 9. g4 {[%clk 0:02:13.7]} 9... Bg6 {[%clk 0:02:25.1]}
10. Bg2 {[%clk 0:02:14.7]} 10... Qe7 {[%clk 0:02:23.8]} 11. Nh3 {[%clk
0:02:06.3]} 11... Nbd7 {[%clk 0:02:20.8]} 12. Nf2 {[%clk 0:02:05.7]} 12... exf3
{[%clk 0:01:49.4]} 13. Bxf3 {[%clk 0:02:07.6]} 13... O-O-O {[%clk 0:01:45.3]}
14. Kb1 {[%clk 0:01:47.6]} 14... Rhe8 {[%clk 0:01:43.3]} 15. Rde1 {[%clk
0:01:47]} 15... Bb4 {[%clk 0:01:42.1]} 16. Nd3 {[%clk 0:01:38.5]} 16... Ba5
{[%clk 0:01:42.9]} 17. Qg2 {[%clk 0:01:37.2]} 17... Ne4 {[%clk 0:01:42]} 18.
Bxe4 {[%clk 0:01:36]} 18... Bxe4 {[%clk 0:01:40.8]} 19. Nxe4 {[%clk 0:01:33.5]}
19... Bxe1 {[%clk 0:01:17.7]} 20. Nec5 {[%clk 0:01:29.6]} 20... Bh4 {[%clk
0:01:08.5]} 21. Nxd7 {[%clk 0:01:25.8]} 21... Qxd7 {[%clk 0:01:10.4]} 22. Ne5
{[%clk 0:01:26.1]} 22... Qe6 {[%clk 0:01:09.9]} 23. Bc1 {[%clk 0:01:23.4]} 23...
Bf6 {[%clk 0:01:08.1]} 24. Nd3 {[%clk 0:01:24.2]} 24... Qe4 {[%clk 0:01:08.6]}
25. Qg1 {[%clk 0:01:25.6]} 25... Bg5 {[%clk 0:01:09.1]} 26. Nc5 {[%clk
0:01:25.9]} 26... Qf3 {[%clk 0:01:08.9]} 27. Qf1 {[%clk 0:01:24.7]} 27... Qxf1
{[%clk 0:01:09.2]} 28. Rxf1 {[%clk 0:01:26.6]} 28... b6 {[%clk 0:01:08.2]} 29.
Nd3 {[%clk 0:01:24.7]} 29... f6 {[%clk 0:01:07.3]} 30. Rf3 {[%clk 0:01:20.9]}
30... Re6 {[%clk 0:01:01.4]} 31. Nf2 {[%clk 0:01:18.3]} 31... Rde8 {[%clk
0:01:01.4]} 32. Nd1 {[%clk 0:01:19.9]} 32... Re4 {[%clk 0:01:01.7]} 33. Nf2
{[%clk 0:01:16.2]} 33... R4e7 {[%clk 0:00:57.9]} 34. Nd1 {[%clk 0:01:17.2]}
34... Kd7 {[%clk 0:00:58.6]} 35. c3 {[%clk 0:01:18.3]} 35... Re4 {[%clk
0:00:58.6]} 36. Nf2 {[%clk 0:01:18.7]} 36... R4e7 {[%clk 0:00:58.6]} 37. Nd1
{[%clk 0:01:19.8]} 37... h5 {[%clk 0:00:58.5]} 38. gxh5 {[%clk 0:01:18.8]} 38...
Rh8 {[%clk 0:00:59.2]} 39. Kc2 {[%clk 0:01:13.1]} 39... Rxh5 {[%clk 0:01:00.1]}
40. h3 {[%clk 0:01:14.7]} 40... Bh4 {[%clk 0:00:57.2]} 41. Kd3 {[%clk
0:01:07.2]} 41... Rg5 {[%clk 0:00:55.2]} 42. c4 {[%clk 0:00:58.4]} 42... Rg1
{[%clk 0:00:54.7]} 43. Ke2 {[%clk 0:00:50.3]} 43... Rg2+ {[%clk 0:00:51.7]} 44.
Kd3 {[%clk 0:00:49.3]} 44... Rg3 {[%clk 0:00:44.7]} 45. Rxg3 {[%clk 0:00:49.4]}
45... Bxg3 {[%clk 0:00:46.6]} 46. cxd5 {[%clk 0:00:50.7]} 46... cxd5 {[%clk
0:00:47.9]} 47. Nc3 {[%clk 0:00:52.2]} 47... Ke6 {[%clk 0:00:49.1]} 48. e4
{[%clk 0:00:53.7]} 48... dxe4+ {[%clk 0:00:47]} 49. Kxe4 {[%clk 0:00:51.5]}
49... Rc7 {[%clk 0:00:41.1]} 50. d5+ {[%clk 0:00:51.2]} 50... Kd7 {[%clk
0:00:41.7]} 51. Bd2 {[%clk 0:00:51.3]} 51... g6 {[%clk 0:00:40]} 52. b4 {[%clk
0:00:46.8]} 52... Be5 {[%clk 0:00:39.5]} 53. Nb5 {[%clk 0:00:42.2]} 53... Rc2
{[%clk 0:00:38]} 54. Kd3 {[%clk 0:00:41.9]} 54... Rxa2 {[%clk 0:00:39]} 55. Be3
{[%clk 0:00:37.4]} 55... a6 {[%clk 0:00:37.3]} 56. Na7 {[%clk 0:00:36.2]} 56...
Ra3+ {[%clk 0:00:31.3]} 57. Ke2 {[%clk 0:00:34.4]} 57... Bc7 {[%clk 0:00:28.7]}
58. Nc6 {[%clk 0:00:27.1]} 58... a5 {[%clk 0:00:30]} 59. bxa5 {[%clk 0:00:21.1]}
59... bxa5 {[%clk 0:00:31.9]} 60. Nd4 {[%clk 0:00:22.3]} 60... Rxe3+ {[%clk
0:00:31.2]} 61. Kxe3 {[%clk 0:00:22.3]} 61... Bb6 {[%clk 0:00:33.1]} 62. Ke4
{[%clk 0:00:23.7]} 62... Bxd4 {[%clk 0:00:33.9]} 63. Kxd4 {[%clk 0:00:25.6]}
63... Kd6 {[%clk 0:00:35.4]} 64. Kc4 {[%clk 0:00:27]} 64... f5 {[%clk
0:00:36.5]} 65. Kb5 {[%clk 0:00:28.1]} 65... f4 {[%clk 0:00:37.7]} 66. Ka6
{[%clk 0:00:30]} 66... f3 {[%clk 0:00:38.7]} 67. Ka7 {[%clk 0:00:31.9]} 67... f2
{[%clk 0:00:39.9]} 68. Ka8 {[%clk 0:00:33.8]} 68... a4 {[%clk 0:00:41.1]} 69.
Kb8 {[%clk 0:00:35.7]} 69... a3 {[%clk 0:00:42.5]} 70. Kb7 {[%clk 0:00:37.6]}
70... a2 {[%clk 0:00:43.9]} 71. Kc8 {[%clk 0:00:39.5]} 71... f1=Q {[%clk
0:00:44.2]} 72. Kb8 {[%clk 0:00:41.4]} 72... Qb5+ {[%clk 0:00:44.2]} 73. Kc8
{[%clk 0:00:43.3]} 73... a1=Q {[%clk 0:00:44.3]} 74. Kd8 {[%clk 0:00:45.2]}
74... Qa8# {[%clk 0:00:45.3]} 0-1

[Event "*** MasterClass Titled Tuesday Blitz"]
[Site "Chess.com"]
[Date "2017.11.07"]
[Round "4"]
[White "chesssharkattack"]
[Black "Krasimir_Rusev"]
[Result "0-1"]
[WhiteElo "2353"]
[BlackElo "2574"]
[TimeControl "180+2"]
[EndTime "15:03:06 PST"]
[Termination "Krasimir_Rusev won on time"]

1. e4 {[%clk 0:02:30.6]} 1... e5 {[%clk 0:02:58.2]} 2. Nf3 {[%clk 0:02:31.2]}
2... d6 {[%clk 0:02:59.5]} 3. Nc3 {[%clk 0:02:31.4]} 3... Nf6 {[%clk 0:03:00.3]}
4. d4 {[%clk 0:02:32.7]} 4... exd4 {[%clk 0:03:02.2]} 5. Nxd4 {[%clk 0:02:34.6]}
5... Be7 {[%clk 0:03:03.9]} 6. Bc4 {[%clk 0:02:33]} 6... O-O {[%clk 0:03:05.8]}
7. O-O {[%clk 0:02:34.1]} 7... c6 {[%clk 0:03:07.3]} 8. Re1 {[%clk 0:02:35]}
8... Re8 {[%clk 0:03:08.3]} 9. h3 {[%clk 0:02:36.1]} 9... a5 {[%clk 0:03:08.7]}
10. a4 {[%clk 0:02:36.4]} 10... Bf8 {[%clk 0:03:10.1]} 11. Qf3 {[%clk
0:02:36.9]} 11... Nbd7 {[%clk 0:03:11.1]} 12. Qg3 {[%clk 0:02:36.7]} 12... Ne5
{[%clk 0:03:09.1]} 13. Bb3 {[%clk 0:02:37.4]} 13... Ng6 {[%clk 0:03:09.8]} 14.
f4 {[%clk 0:02:35.9]} 14... Qb6 {[%clk 0:03:05.8]} 15. Qf2 {[%clk 0:02:29.2]}
15... d5 {[%clk 0:02:52.5]} 16. e5 {[%clk 0:02:21.1]} 16... Bc5 {[%clk
0:02:53.2]} 17. Be3 {[%clk 0:02:21.6]} 17... Nxe5 {[%clk 0:02:12.6]} 18. fxe5
{[%clk 0:02:20.6]} 18... Rxe5 {[%clk 0:02:14.5]} 19. Rad1 {[%clk 0:02:20.2]}
19... Bd7 {[%clk 0:02:15.8]} 20. Qd2 {[%clk 0:01:25.3]} 20... Rae8 {[%clk
0:02:11.8]} 21. Kf1 {[%clk 0:01:26.8]} 21... R8e7 {[%clk 0:02:01.8]} 22. Bf2
{[%clk 0:01:19.2]} 22... h6 {[%clk 0:01:43.1]} 23. Rxe5 {[%clk 0:01:19]} 23...
Rxe5 {[%clk 0:01:45]} 24. Nf3 {[%clk 0:01:20.7]} 24... Rf5 {[%clk 0:01:43.3]}
25. Bxc5 {[%clk 0:01:20.5]} 25... Qxc5 {[%clk 0:01:45.2]} 26. Qd4 {[%clk
0:01:17.1]} 26... Qd6 {[%clk 0:01:44.6]} 27. Kg1 {[%clk 0:01:05.5]} 27... Rxf3
{[%clk 0:01:41.7]} 28. gxf3 {[%clk 0:01:04.4]} 28... Qg3+ {[%clk 0:01:42.8]} 29.
Kf1 {[%clk 0:01:04.8]} 29... Qxf3+ {[%clk 0:01:37]} 30. Ke1 {[%clk 0:00:52.2]}
30... Bxh3 {[%clk 0:01:31.4]} 31. Kd2 {[%clk 0:00:50.4]} 31... Bg4 {[%clk
0:01:18.9]} 32. Re1 {[%clk 0:00:50.2]} 32... h5 {[%clk 0:01:19.2]} 33. Qe3
{[%clk 0:00:48.5]} 33... Qg2+ {[%clk 0:01:19.3]} 34. Kc1 {[%clk 0:00:47.4]}
34... h4 {[%clk 0:01:20.7]} 35. Nd1 {[%clk 0:00:42.5]} 35... Ne4 {[%clk
0:01:17.5]} 36. c4 {[%clk 0:00:37.8]} 36... Be6 {[%clk 0:00:43.2]} 37. cxd5
{[%clk 0:00:36.3]} 37... cxd5 {[%clk 0:00:44.6]} 38. Bc2 {[%clk 0:00:37.9]}
38... h3 {[%clk 0:00:29.8]} 39. Bxe4 {[%clk 0:00:30.2]} 39... dxe4 {[%clk
0:00:31.7]} 40. Qxe4 {[%clk 0:00:17.3]} 40... Qg5+ {[%clk 0:00:28.3]} 41. Ne3
{[%clk 0:00:13.1]} 41... g6 {[%clk 0:00:16.6]} 42. Kd1 {[%clk 0:00:11]} 42...
Qh5+ {[%clk 0:00:16.4]} 43. Kd2 {[%clk 0:00:10.7]} 43... Qc5 {[%clk 0:00:16.9]}
44. Qxb7 {[%clk 0:00:08.6]} 44... Qd4+ {[%clk 0:00:17]} 45. Ke2 {[%clk 0:00:10]}
45... h2 {[%clk 0:00:12.9]} 46. Rh1 {[%clk 0:00:09.2]} 46... Bg4+ {[%clk
0:00:13.2]} 47. Nxg4 {[%clk 0:00:09.7]} 47... Qxg4+ {[%clk 0:00:14.9]} 48. Kd3
{[%clk 0:00:09.1]} 48... Qf5+ {[%clk 0:00:13.7]} 49. Kc4 {[%clk 0:00:09.8]}
49... Qf4+ {[%clk 0:00:13.9]} 50. Kc5 {[%clk 0:00:07.8]} 50... Kg7 {[%clk
0:00:12.5]} 51. Kb6 {[%clk 0:00:05.5]} 51... Qb4+ {[%clk 0:00:11.3]} 52. Ka6
{[%clk 0:00:06.8]} 52... Qxa4 {[%clk 0:00:12.2]} 53. Rxh2 {[%clk 0:00:08]} 53...
Qc4+ {[%clk 0:00:13.5]} 54. Ka7 {[%clk 0:00:07.9]} 54... Qc5+ {[%clk 0:00:14.7]}
55. Ka8 {[%clk 0:00:08]} 55... Qf8+ {[%clk 0:00:15.7]} 56. Ka7 {[%clk
0:00:08.9]} 56... Qc5+ {[%clk 0:00:16.8]} 57. Ka8 {[%clk 0:00:08.7]} 57... a4
{[%clk 0:00:15.3]} 58. Rd2 {[%clk 0:00:09.1]} 58... Qa5+ {[%clk 0:00:16.2]} 0-1

[Event "*** MasterClass Titled Tuesday Blitz"]
[Site "Chess.com"]
[Date "2017.11.07"]
[Round "4"]
[White "ChadBiryani"]
[Black "viggi38"]
[Result "0-1"]
[WhiteElo "2180"]
[BlackElo "2216"]
[TimeControl "180+2"]
[EndTime "15:03:11 PST"]
[Termination "viggi38 won by resignation"]

1. d4 {[%clk 0:03:01.9]} 1... f5 {[%clk 0:02:59.9]} 2. Bf4 {[%clk 0:03:01.1]}
2... Nf6 {[%clk 0:02:59.7]} 3. e3 {[%clk 0:02:58.6]} 3... e6 {[%clk 0:03:00.2]}
4. h3 {[%clk 0:02:57.6]} 4... d6 {[%clk 0:03:00.1]} 5. Nf3 {[%clk 0:02:55.3]}
5... Be7 {[%clk 0:02:58.1]} 6. c3 {[%clk 0:02:53.2]} 6... Nc6 {[%clk 0:02:40.6]}
7. b4 {[%clk 0:02:51.6]} 7... a6 {[%clk 0:02:31.5]} 8. a4 {[%clk 0:02:51.7]}
8... Ne4 {[%clk 0:02:21.9]} 9. Qb3 {[%clk 0:02:45.3]} 9... Bf6 {[%clk
0:02:18.7]} 10. Nfd2 {[%clk 0:02:42]} 10... e5 {[%clk 0:02:16.8]} 11. Bh2 {[%clk
0:02:40.2]} 11... Nxd2 {[%clk 0:02:06]} 12. Nxd2 {[%clk 0:02:41]} 12... Qe7
{[%clk 0:02:07.1]} 13. d5 {[%clk 0:02:37.1]} 13... Nd8 {[%clk 0:02:07.7]} 14. b5
{[%clk 0:02:33.4]} 14... axb5 {[%clk 0:02:06.6]} 15. Bxb5+ {[%clk 0:02:34.7]}
15... Bd7 {[%clk 0:01:45.9]} 16. O-O {[%clk 0:02:30.4]} 16... O-O {[%clk
0:01:44.3]} 17. a5 {[%clk 0:02:25.2]} 17... Bxb5 {[%clk 0:01:23.8]} 18. Qxb5
{[%clk 0:02:25.4]} 18... c6 {[%clk 0:01:25.7]} 19. Qb3 {[%clk 0:02:23.6]} 19...
Qf7 {[%clk 0:01:26.8]} 20. c4 {[%clk 0:02:22.6]} 20... g5 {[%clk 0:01:21]} 21.
e4 {[%clk 0:02:20.3]} 21... f4 {[%clk 0:01:21.4]} 22. f3 {[%clk 0:02:17.6]}
22... h5 {[%clk 0:01:22.4]} 23. Kh1 {[%clk 0:02:14.2]} 23... g4 {[%clk 0:01:22]}
24. fxg4 {[%clk 0:02:14.6]} 24... hxg4 {[%clk 0:01:23.9]} 25. hxg4 {[%clk
0:02:15.5]} 25... Kg7 {[%clk 0:01:19.6]} 26. Nf3 {[%clk 0:02:12.4]} 26... Rh8
{[%clk 0:01:18.7]} 27. Kg1 {[%clk 0:02:11.5]} 27... Qg6 {[%clk 0:01:15.8]} 28.
g5 {[%clk 0:02:05.3]} 28... Bxg5 {[%clk 0:01:13.3]} 29. Nxg5 {[%clk 0:02:06.4]}
29... Qxg5 {[%clk 0:01:14.5]} 30. dxc6 {[%clk 0:01:49.4]} 30... bxc6 {[%clk
0:01:14]} 31. Rf3 {[%clk 0:01:34.7]} 31... Ne6 {[%clk 0:01:04.1]} 32. Qb7+
{[%clk 0:01:33.3]} 32... Kf6 {[%clk 0:01:03.9]} 33. Qxc6 {[%clk 0:01:33]} 33...
Rag8 {[%clk 0:01:04.5]} 34. Ra2 {[%clk 0:01:31.9]} 34... Qh4 {[%clk 0:01:03.9]}
35. g3 {[%clk 0:00:54]} 35... Qg4 {[%clk 0:00:21.6]} 36. Raf2 {[%clk 0:00:46]}
36... Rd8 {[%clk 0:00:22.7]} 37. Kf1 {[%clk 0:00:39.5]} 37... Nd4 {[%clk
0:00:23.4]} 38. Rxf4+ {[%clk 0:00:28.9]} 38... exf4 {[%clk 0:00:23]} 39. Qa4
{[%clk 0:00:21.8]} 39... f3 {[%clk 0:00:18.9]} 40. Qa1 {[%clk 0:00:20.7]} 40...
Qxe4 {[%clk 0:00:17.8]} 41. Rd2 {[%clk 0:00:17.9]} 41... Ke5 {[%clk 0:00:17.1]}
42. g4+ {[%clk 0:00:18.9]} 42... Ke6 {[%clk 0:00:15.3]} 43. Kg1 {[%clk
0:00:05.4]} 43... Ne2+ {[%clk 0:00:14.8]} 44. Kf1 {[%clk 0:00:04]} 44... Rxh2
{[%clk 0:00:14]} 45. Qg7 {[%clk 0:00:04.7]} 45... Qe3 {[%clk 0:00:07.7]} 46.
Qg6+ {[%clk 0:00:03.9]} 46... Kd7 {[%clk 0:00:09.1]} 47. Qf7+ {[%clk 0:00:04.3]}
47... Qe7 {[%clk 0:00:09.1]} 48. Qf5+ {[%clk 0:00:05.1]} 48... Kc7 {[%clk
0:00:10]} 49. a6 {[%clk 0:00:03.7]} 49... Rh1+ {[%clk 0:00:10.9]} 50. Kf2 {[%clk
0:00:04.8]} 50... Qh4+ {[%clk 0:00:11.8]} 51. Ke3 {[%clk 0:00:05.8]} 51... Re8+
{[%clk 0:00:12]} 52. Kd3 {[%clk 0:00:06.6]} 52... Nc1+ {[%clk 0:00:13.2]} 53.
Kc2 {[%clk 0:00:07.3]} 53... Qh8 {[%clk 0:00:14.8]} 54. Qa5+ {[%clk 0:00:05.4]}
54... Kd7 {[%clk 0:00:16.1]} 55. Qb5+ {[%clk 0:00:05.7]} 55... Ke7 {[%clk
0:00:17.2]} 56. Qb7+ {[%clk 0:00:05.4]} 56... Kf8 {[%clk 0:00:17.3]} 57. Rxd6
{[%clk 0:00:06.2]} 57... Qh7+ {[%clk 0:00:17.5]} 58. Qxh7 {[%clk 0:00:06.2]}
58... Rxh7 {[%clk 0:00:19.4]} 59. Kxc1 {[%clk 0:00:07.8]} 59... f2 {[%clk
0:00:19.7]} 60. Rd1 {[%clk 0:00:06.2]} 60... Re1 {[%clk 0:00:19]} 61. a7 {[%clk
0:00:06.4]} 61... Rxd1+ {[%clk 0:00:19.7]} 62. Kxd1 {[%clk 0:00:06.9]} 62...
f1=Q+ {[%clk 0:00:20.5]} 0-1

[Event "*** MasterClass Titled Tuesday Blitz"]
[Site "Chess.com"]
[Date "2017.11.07"]
[Round "4"]
[White "popov_m"]
[Black "Swarnapuri"]
[Result "0-1"]
[WhiteElo "2490"]
[BlackElo "2494"]
[TimeControl "180+2"]
[EndTime "15:03:20 PST"]
[Termination "Swarnapuri won by checkmate"]

1. d4 {[%clk 0:03:01.2]} 1... Nc6 {[%clk 0:02:59.6]} 2. d5 {[%clk 0:02:49.1]}
2... Ne5 {[%clk 0:03:00.1]} 3. e4 {[%clk 0:02:49.9]} 3... Ng6 {[%clk 0:03:01]}
4. Nf3 {[%clk 0:02:50.3]} 4... e5 {[%clk 0:03:01.9]} 5. dxe6 {[%clk 0:02:45]}
5... dxe6 {[%clk 0:03:02.8]} 6. Qxd8+ {[%clk 0:02:44.5]} 6... Kxd8 {[%clk
0:03:04.7]} 7. Nc3 {[%clk 0:02:29.4]} 7... Bc5 {[%clk 0:02:52.5]} 8. Bg5+ {[%clk
0:02:25.6]} 8... f6 {[%clk 0:02:50.6]} 9. Bd2 {[%clk 0:02:24.9]} 9... Ke8 {[%clk
0:02:43.7]} 10. Bc4 {[%clk 0:02:14.7]} 10... N8e7 {[%clk 0:02:40]} 11. Nb5
{[%clk 0:01:54.6]} 11... Bb6 {[%clk 0:02:35]} 12. Nbd4 {[%clk 0:01:52.7]} 12...
Kf7 {[%clk 0:02:17.9]} 13. c3 {[%clk 0:01:43.8]} 13... Bd7 {[%clk 0:02:16.6]}
14. O-O-O {[%clk 0:01:33.4]} 14... Nc6 {[%clk 0:02:15.9]} 15. Be3 {[%clk
0:01:26]} 15... Nce5 {[%clk 0:02:05.5]} 16. Nxe5+ {[%clk 0:01:22.4]} 16... Nxe5
{[%clk 0:02:05.8]} 17. Be2 {[%clk 0:01:22.5]} 17... Rad8 {[%clk 0:01:57]} 18.
Kc2 {[%clk 0:01:03.8]} 18... Nc6 {[%clk 0:01:47.9]} 19. b3 {[%clk 0:01:01.7]}
19... Nxd4+ {[%clk 0:01:38.1]} 20. cxd4 {[%clk 0:01:03.6]} 20... Bc6 {[%clk
0:01:39.2]} 21. f3 {[%clk 0:01:02.8]} 21... f5 {[%clk 0:01:39.9]} 22. d5 {[%clk
0:00:33.3]} 22... Bxe3 {[%clk 0:01:05.2]} 23. dxc6 {[%clk 0:00:33.6]} 23... bxc6
{[%clk 0:01:07.1]} 24. exf5 {[%clk 0:00:32.8]} 24... exf5 {[%clk 0:01:09]} 25.
Bc4+ {[%clk 0:00:27.9]} 25... Kf6 {[%clk 0:01:08.8]} 26. Rxd8 {[%clk 0:00:27.9]}
26... Rxd8 {[%clk 0:01:09.4]} 27. Rd1 {[%clk 0:00:29.4]} 27... Bd4 {[%clk
0:01:10.9]} 28. Re1 {[%clk 0:00:29.4]} 28... Be5 {[%clk 0:01:08]} 29. g3 {[%clk
0:00:25.8]} 29... g5 {[%clk 0:01:08.8]} 30. Re2 {[%clk 0:00:15.1]} 30... h5
{[%clk 0:01:07.3]} 31. Bd3 {[%clk 0:00:14.9]} 31... c5 {[%clk 0:01:05.3]} 32.
Bc4 {[%clk 0:00:15.3]} 32... Rh8 {[%clk 0:01:00.6]} 33. Rd2 {[%clk 0:00:14.6]}
33... h4 {[%clk 0:01:01.4]} 34. g4 {[%clk 0:00:15.8]} 34... h3 {[%clk
0:00:57.4]} 35. Bd3 {[%clk 0:00:15.4]} 35... fxg4 {[%clk 0:00:56.4]} 36. fxg4
{[%clk 0:00:17.3]} 36... Rd8 {[%clk 0:00:57.5]} 37. Rf2+ {[%clk 0:00:17.3]}
37... Bf4 {[%clk 0:00:57.7]} 38. Rf3 {[%clk 0:00:16.9]} 38... Rh8 {[%clk
0:00:59.2]} 39. Rf2 {[%clk 0:00:18]} 39... Rh4 {[%clk 0:00:58.1]} 40. Bf5 {[%clk
0:00:18.4]} 40... Rh8 {[%clk 0:00:59.3]} 41. Bd3 {[%clk 0:00:15.1]} 41... Ke5
{[%clk 0:00:59.3]} 42. Re2+ {[%clk 0:00:15.1]} 42... Kd6 {[%clk 0:01:00.5]} 43.
Bf5 {[%clk 0:00:13.4]} 43... Rh6 {[%clk 0:01:01.5]} 44. Kd3 {[%clk 0:00:14]}
44... Rf6 {[%clk 0:01:02.4]} 45. Kc4 {[%clk 0:00:14.7]} 45... Kc6 {[%clk
0:01:00.9]} 46. Rf2 {[%clk 0:00:11.7]} 46... Rd6 {[%clk 0:01:01.4]} 47. Kc3
{[%clk 0:00:11.8]} 47... a5 {[%clk 0:00:59.9]} 48. Rf3 {[%clk 0:00:08.9]} 48...
Rh6 {[%clk 0:00:56.3]} 49. Rf2 {[%clk 0:00:10]} 49... Kd5 {[%clk 0:00:56.8]} 50.
Kd3 {[%clk 0:00:11]} 50... Ke5 {[%clk 0:00:57.7]} 51. Re2+ {[%clk 0:00:11.5]}
51... Kd5 {[%clk 0:00:59.2]} 52. Be4+ {[%clk 0:00:09.8]} 52... Kd6 {[%clk
0:00:59.7]} 53. Bf5 {[%clk 0:00:10.5]} 53... Rf6 {[%clk 0:01:00.5]} 54. Kc4
{[%clk 0:00:09.8]} 54... Kc6 {[%clk 0:00:59.7]} 55. Kc3 {[%clk 0:00:10.4]} 55...
Kb6 {[%clk 0:00:58.6]} 56. Rf2 {[%clk 0:00:10.3]} 56... Rd6 {[%clk 0:00:58.7]}
57. Re2 {[%clk 0:00:06.5]} 57... Rd1 {[%clk 0:00:58.1]} 58. Re6+ {[%clk
0:00:07.1]} 58... c6 {[%clk 0:00:58.8]} 59. Rh6 {[%clk 0:00:07.8]} 59... Rc1+
{[%clk 0:00:52.7]} 60. Kb2 {[%clk 0:00:07.3]} 60... Rh1 {[%clk 0:00:53]} 61.
Rxh3 {[%clk 0:00:08.2]} 61... Bxh2 {[%clk 0:00:54.2]} 62. Ka3 {[%clk 0:00:05.2]}
62... c4 {[%clk 0:00:54.9]} 63. bxc4 {[%clk 0:00:04.9]} 63... Bd6+ {[%clk
0:00:55.7]} 64. c5+ {[%clk 0:00:04.4]} 64... Bxc5+ {[%clk 0:00:56.9]} 65. Ka4
{[%clk 0:00:05.6]} 65... Rxh3 {[%clk 0:00:58.8]} 66. Bd3 {[%clk 0:00:04.7]}
66... Rxd3 {[%clk 0:00:59.9]} 67. a3 {[%clk 0:00:06.6]} 67... Rxa3# {[%clk
0:01:00.6]} 0-1